[Event "TUR-chT Superleague 2018"]
[Site "Ankara"]
[Date "2018.07.29"]
[Round "5"]
[White "Ererdem, Gani Eren"]
[Black "Secer, Ata"]
[Result "0-1"]
[ECO "D79"]
[WhiteElo "2157"]
[BlackElo "2320"]
[Annotator "NA"]
[PlyCount "90"]
[EventDate "2018.07.25"]
[EventType "team-tourn"]
[EventCountry "TUR"]
[SourceTitle "playchess.com"]
[Source "ChessBase"]
[SourceQuality "1"]
[TimeControl "40/5400+30:1800+30"]

1. d4 {[%emt 0:00:30]} Nf6 {[%emt 0:01:00]} 2. c4 {[%emt 0:00:00]} g6 {[%emt 0:02:30]} 3. g3 {[%emt 0:00:00]} c6 {[%emt 0:00:00]} 4. Nf3 {[%emt 0:13:30]} Bg7 {[%emt 0:01:00]} 5. Bg2 {[%emt 0:00:30]} O-O {[%emt 0:00:30]} 6. O-O {[%emt 0:00:30]} d5 {[%emt 0:00:30]} 7. cxd5 {[%emt 0:03:30]} cxd5 {[%emt 0:01:30]} 8. Ne5 {[%emt 0:02:30]} e6 {[%emt 0:00:30]} 9. Nc3 {[%emt 0:01:30] LiveBook: 1139 Games} Nfd7 $11 {[%emt 0:00:30]} 10. Nf3 {[%emt 0:01:30]} Nc6 {[%emt 0:00:30]} 11. b3 {[%emt 0:04:30]} Nf6 {[%emt 0:13:30]} 12. e3 {[%emt 0:05:30]} Ne4 {[%emt 0:04:30]} 13. Nxe4 {[%emt 0:10:30]} dxe4 {[%emt 0:01:30]} 14. Nd2 {[%emt 0:00:30]} e5 {[%emt 0:03:30]} 15. d5 {[%emt 0:01:30]} Qxd5 {[%emt 0:00:30]} 16. Nxe4 {[%emt 0:00:30]} Qa5 {[%emt 0:01:30]} 17. Bd2 {[%emt 0:08:30]} Qa3 {[%emt 0:03:30]} 18. Qc1 {[%emt 0:02:30]} Qe7 {[%emt 0:04:30]} 19. Qc5 {[%emt 0:03:30]} Rd8 {[%emt 0:16:30]} 20. Qxe7 {[%emt 0:08:30]} Nxe7 {[%emt 0:00:30]} 21. Ba5 {[%emt 0:00:00]} b6 {[%emt 0:08:30]} 22. Bb4 {[%emt 0:09:00]} Nd5 {[%emt 0:01:30]} 23. Ba3 {[%emt 0:06:39]} f5 {[%emt 0:04:30]} 24. Nc3 {[%emt 0:10:07]} Nxc3 {[%emt 0:10:52]} 25. Bxa8 {[%emt 0:00:03]} Ba6 {[%emt 0:00:28]} 26. Bg2 {[%emt 0:00:05]} e4 {[%emt 0:00:34]} 27. Rfe1 {[%emt 0:01:31]} Ne2+ {[%emt 0:01:07]} 28. Kh1 {[%emt 0:03:43]} Bxa1 {[%emt 0:00:45]} 29. Rxa1 {[%emt 0:00:01]} Rd2 {[%emt 0:01:00]} 30. h4 {[%emt 0:01:05]} Bd3 {[%emt 0:01:20]} 31. Bb4 {[%emt 0:00:43]} Rc2 {[%emt 0:00:06]} 32. g4 {[%emt 0:02:09]} fxg4 {[%emt 0:01:29]} 33. Bd6 {[%emt 0:00:49]} Kf7 {[%emt 0:00:56]} 34. Bb8 {[%emt 0:00:23]} a6 {[%emt 0:02:55]} 35. Ba7 {[%emt 0:00:04]} b5 {[%emt 0:00:00]} 36. Kh2 {[%emt 0:01:01]} Nc1 {[%emt 0:02:49]} 37. Kg3 {[%emt 0:00:23]} h5 {[%emt 0:01:01]} 38. a4 {[%emt 0:00:30]} b4 {[%emt 0:00:36]} 39. Bh1 {[%emt 0:00:28]} Ne2+ {[%emt 0:00:55]} 40. Kh2 {[%emt 0:00:00]} g3+ {[%emt 0:01:37]} 41. Kg2 {[%emt 0:02:46]} gxf2 {[%emt 0:00:30]} 42. Kxf2 {[%emt 0:00:30]} Ke6 {[%emt 0:01:30]} 43. Bb6 {[%emt 0:02:30]} Kf5 {[%emt 0:02:30]} 44. Ba5 {[%emt 0:01:30]} Kg4 {[%emt 0:00:30]} 45. Bxb4 {[%emt 0:00:30]} Nf4+ {[%emt 0:00:30]} 0-1

[Event "TUR-chT Superleague 2018"]
[Site "Ankara"]
[Date "2018.07.29"]
[Round "5"]
[White "Tarlabasi, Emirhan"]
[Black "Unat, Can Haktan"]
[Result "1/2-1/2"]
[ECO "D86"]
[WhiteElo "2117"]
[BlackElo "2047"]
[Annotator "NA"]
[PlyCount "78"]
[EventDate "2018.07.25"]
[EventType "team-tourn"]
[EventCountry "TUR"]
[SourceTitle "playchess.com"]
[Source "ChessBase"]
[SourceQuality "1"]
[TimeControl "40/5400+30:1800+30"]

1. d4 {[%emt 0:00:30]} Nf6 {[%emt 0:01:00]} 2. c4 {[%emt 0:00:30]} g6 {[%emt 0:00:30]} 3. Nc3 {[%emt 0:00:30]} d5 {[%emt 0:00:00]} 4. cxd5 {[%emt 0:00:00]} Nxd5 {[%emt 0:00:00]} 5. e4 {[%emt 0:00:00]} Nxc3 {[%emt 0:00:00]} 6. bxc3 {[%emt 0:00:00]} Bg7 {[%emt 0:00:00]} 7. Bc4 {[%emt 0:00:00]} O-O {[%emt 0:00:30]} 8. Ne2 {[%emt 0:00:30]} Nc6 {[%emt 0:00:00]} 9. Be3 {[%emt 0:02:30]} b6 {[%emt 0:01:00]} 10. h4 {[%emt 0:05:30]} e5 {[%emt 0:00:30]} 11. Bd5 {[%emt 0:03:30]} Bb7 {[%emt 0:06:30]} 12. h5 {[%emt 0:08:30]} Na5 {[%emt 0:06:30]} 13. Bxb7 {[%emt 0:07:30]} Nxb7 $14 {[%emt 0:00:30]} 14. hxg6 {[%emt 0:00:30]} hxg6 {[%emt 0:00:30]} 15. Qc1 {[%emt 0:13:30]} Re8 {[%emt 0:08:30]} 16. Bh6 {[%emt 0:09:30]} Bf6 {[%emt 0:01:30]} 17. d5 {[%emt 0:05:30]} c6 {[%emt 0:03:30]} 18. c4 {[%emt 0:06:30]} Nd6 {[%emt 0:03:30]} 19. Qc2 {[%emt 0:15:54]} Rc8 {[%emt 0:00:30]} 20. Qd3 {[%emt 0:01:14]} cxd5 {[%emt 0:09:30]} 21. cxd5 {[%emt 0:00:17]} Qd7 {[%emt 0:01:30]} 22. Qf3 {[%emt 0:04:30]} Bg7 {[%emt 0:00:30]} 23. Qe3 {[%emt 0:09:48]} f6 {[%emt 0:04:30]} 24. Bxg7 {[%emt 0:02:35]} Qxg7 {[%emt 0:00:00]} 25. g4 {[%emt 0:00:20]} Rc4 {[%emt 0:01:00]} 26. f3 {[%emt 0:00:25]} Rec8 {[%emt 0:03:30]} 27. Kf2 {[%emt 0:01:33]} Rc2 {[%emt 0:02:30]} 28. Rac1 {[%emt 0:00:37]} Nb5 {[%emt 0:00:00]} 29. Kg3 {[%emt 0:01:41]} Nd4 {[%emt 0:00:00]} 30. Rxc2 {[%emt 0:00:34]} Nxc2 {[%emt 0:00:30]} 31. Qb3 {[%emt 0:00:30]} Qd7 {[%emt 0:01:30]} 32. Rc1 {[%emt 0:00:29]} Nd4 {[%emt 0:00:30]} 33. Rxc8+ {[%emt 0:00:30]} Qxc8 {[%emt 0:00:00]} 34. Nxd4 {[%emt 0:00:00]} exd4 {[%emt 0:00:00]} 35. d6+ {[%emt 0:00:19]} Kg7 {[%emt 0:01:30]} 36. Qd5 {[%emt 0:01:19]} Qc3 {[%emt 0:00:00]} 37. d7 {[%emt 0:00:30]} Qe1+ {[%emt 0:00:00]} 38. Kh3 {[%emt 0:00:21]} Qh1+ {[%emt 0:00:30]} 39. Kg3 {[%emt 0:00:30]} Qg1+ {[%emt 0:00:00]} 1/2-1/2

[Event "TUR-chT Superleague 2018"]
[Site "Ankara"]
[Date "2018.07.29"]
[Round "5"]
[White "Caglar, Ahmet Ata"]
[Black "Samani, Yamac"]
[Result "1/2-1/2"]
[ECO "D23"]
[WhiteElo "2097"]
[BlackElo "2227"]
[Annotator "NA"]
[PlyCount "60"]
[EventDate "2018.07.25"]
[EventType "team-tourn"]
[EventCountry "TUR"]
[SourceTitle "playchess.com"]
[Source "ChessBase"]
[SourceQuality "1"]
[TimeControl "40/5400+30:1800+30"]

1. d4 {[%emt 0:00:30]} d5 {[%emt 0:01:00]} 2. c4 {[%emt 0:00:30]} c6 {[%emt 0:00:30]} 3. Nf3 {[%emt 0:00:30]} Nf6 {[%emt 0:00:00]} 4. g3 {[%emt 0:00:00]} dxc4 {[%emt 0:02:00]} 5. Bg2 {[%emt 0:00:00]} Bg4 {[%emt 0:05:30]} 6. O-O {[%emt 0:01:30]} Nbd7 {[%emt 0:00:30]} 7. Qc2 {[%emt 0:01:30]} e6 {[%emt 0:00:30]} 8. Qxc4 {[%emt 0:10:30]} Be7 {[%emt 0:00:30]} 9. Nc3 {[%emt 0:00:30]} O-O {[%emt 0:01:30]} 10. Ne5 {[%emt 0:03:30]} Bh5 {[%emt 0:01:30]} 11. Qb3 {[%emt 0:15:30]} Qb6 $11 {[%emt 0:03:30]} 12. Qxb6 {[%emt 0:01:30]} axb6 {[%emt 0:01:30]} 13. Bg5 {[%emt 0:00:30]} Bb4 {[%emt 0:06:30]} 14. Nxd7 {[%emt 0:03:30]} Nxd7 {[%emt 0:00:30]} 15. e4 {[%emt 0:00:30]} h6 {[%emt 0:06:30]} 16. Be3 {[%emt 0:01:30]} Bxc3 {[%emt 0:06:30]} 17. bxc3 {[%emt 0:00:30]} Be2 {[%emt 0:14:30]} 18. Rfb1 {[%emt 0:07:30]} Ra3 {[%emt 0:05:30]} 19. d5 {[%emt 0:02:30]} c5 {[%emt 0:14:30]} 20. e5 {[%emt 0:08:30]} Rxc3 {[%emt 0:04:30]} 21. dxe6 {[%emt 0:00:30]} fxe6 {[%emt 0:00:30]} 22. Bxb7 {[%emt 0:00:30]} Bf3 {[%emt 0:03:30]} 23. Bxf3 {[%emt 0:02:30]} Rxf3 {[%emt 0:00:00]} 24. a4 {[%emt 0:03:30]} Rf5 {[%emt 0:02:43]} 25. a5 {[%emt 0:07:30]} bxa5 {[%emt 0:00:08]} 26. Rb7 {[%emt 0:00:30]} Rd3 {[%emt 0:05:37]} 27. Rxa5 {[%emt 0:05:30]} Rxe5 {[%emt 0:00:12]} 28. Rc7 {[%emt 0:01:30]} Red5 {[%emt 0:01:41]} 29. Bxc5 {[%emt 0:04:54]} Rc3 {[%emt 0:08:28]} 30. Bd6 {[%emt 0:01:35]} Rxc7 {[%emt 0:00:56]} 1/2-1/2

[Event "TUR-chT Superleague 2018"]
[Site "Ankara"]
[Date "2018.07.29"]
[Round "5"]
[White "Gulbeyaz, Emir"]
[Black "Sari, Yasin"]
[Result "1/2-1/2"]
[ECO "C28"]
[WhiteElo "2074"]
[BlackElo "2330"]
[Annotator "NA"]
[PlyCount "91"]
[EventDate "2018.07.25"]
[EventType "team-tourn"]
[EventCountry "TUR"]
[SourceTitle "playchess.com"]
[Source "ChessBase"]
[SourceQuality "1"]
[TimeControl "40/5400+30:1800+30"]

1. e4 {[%emt 0:00:30]} e5 {[%emt 0:01:00]} 2. Nc3 {[%emt 0:01:30]} Nf6 {[%emt 0:02:30]} 3. Bc4 {[%emt 0:00:30]} Nc6 {[%emt 0:10:30]} 4. d3 {[%emt 0:01:30]} Na5 {[%emt 0:03:30]} 5. Bg5 {[%emt 0:05:30]} Be7 {[%emt 0:03:30] LiveBook: 7 Games} 6. Nf3 {[%emt 0:00:30]} d6 {[%emt 0:02:30]} 7. h3 {[%emt 0:00:30]} Nxc4 {[%emt 0:03:30]} 8. dxc4 {[%emt 0:00:30]} Be6 {[%emt 0:00:00]} 9. Qd3 {[%emt 0:00:00]} Nd7 {[%emt 0:02:00]} 10. Be3 {[%emt 0:02:00]} O-O {[%emt 0:02:30]} 11. g4 {[%emt 0:05:30]} a6 {[%emt 0:02:30]} 12. a4 $11 {[%emt 0:00:30]} c6 {[%emt 0:09:30]} 13. a5 {[%emt 0:02:30]} Qc7 {[%emt 0:00:30]} 14. Nd2 {[%emt 0:02:30]} b5 {[%emt 0:05:30]} 15. axb6 {[%emt 0:01:30]} Nxb6 {[%emt 0:00:30]} 16. O-O {[%emt 0:00:30]} g6 {[%emt 0:03:30]} 17. f4 {[%emt 0:03:30]} exf4 {[%emt 0:02:30]} 18. Bxf4 {[%emt 0:00:30]} Nd7 {[%emt 0:00:30]} 19. Kg2 {[%emt 0:05:30]} Ne5 {[%emt 0:05:30]} 20. Qe2 {[%emt 0:07:30]} Rfd8 {[%emt 0:02:30]} 21. Ra4 {[%emt 0:06:30]} Bf6 {[%emt 0:01:30]} 22. Qe3 {[%emt 0:13:30]} Qe7 {[%emt 0:03:30]} 23. g5 {[%emt 0:04:30]} Bg7 {[%emt 0:01:30]} 24. Qg3 {[%emt 0:00:00]} Qb7 {[%emt 0:02:30]} 25. b3 {[%emt 0:02:00]} Nd7 {[%emt 0:02:30]} 26. Bxd6 {[%emt 0:10:30]} Nb6 {[%emt 0:06:30]} 27. e5 {[%emt 0:05:59]} Nxa4 {[%emt 0:00:30]} 28. Nxa4 {[%emt 0:00:08]} c5+ {[%emt 0:05:44]} 29. Kh2 {[%emt 0:02:30]} Bf5 {[%emt 0:01:38]} 30. Nxc5 {[%emt 0:02:17]} Qc6 {[%emt 0:00:17]} 31. Nd3 {[%emt 0:00:00]} a5 {[%emt 0:01:56]} 32. Nf3 {[%emt 0:02:29]} Bxd3 {[%emt 0:04:06]} 33. cxd3 {[%emt 0:00:08]} a4 {[%emt 0:00:02]} 34. bxa4 {[%emt 0:02:35]} Rxa4 {[%emt 0:00:38]} 35. Rf2 {[%emt 0:01:35]} Ra1 {[%emt 0:01:16]} 36. Qf4 {[%emt 0:00:03]} Qb7 {[%emt 0:01:59]} 37. d4 {[%emt 0:03:47]} Rda8 {[%emt 0:01:27]} 38. d5 {[%emt 0:01:49]} R8a2 {[%emt 0:02:52]} 39. Rxa2 {[%emt 0:00:26]} Rxa2+ {[%emt 0:00:30]} 40. Kg3 {[%emt 0:00:00]} Qb2 {[%emt 0:03:05]} 41. e6 {[%emt 0:02:44]} Qf2+ {[%emt 0:08:30]} 42. Kg4 {[%emt 0:00:30]} Qg2+ {[%emt 0:04:30]} 43. Kh4 {[%emt 0:01:30]} Qf2+ {[%emt 0:00:30]} 44. Kg4 {[%emt 0:03:30]} Qg2+ {[%emt 0:00:30]} 45. Kh4 {[%emt 0:00:00]} Qf2+ {[%emt 0:00:30]} 46. Kg4 {[%emt 0:00:00]} 1/2-1/2

[Event "TUR-chT Superleague 2018"]
[Site "Ankara"]
[Date "2018.07.29"]
[Round "5"]
[White "Zeydan, Salih"]
[Black "Karagollu, Ahmet"]
[Result "1/2-1/2"]
[ECO "B06"]
[WhiteElo "2061"]
[BlackElo "2127"]
[Annotator "NA"]
[PlyCount "77"]
[EventDate "2018.07.25"]
[EventType "team-tourn"]
[EventCountry "TUR"]
[SourceTitle "playchess.com"]
[Source "ChessBase"]
[SourceQuality "1"]
[TimeControl "40/5400+30:1800+30"]

1. e4 {[%emt 0:00:30]} Nc6 {[%emt 0:01:00]} 2. Nf3 {[%emt 0:00:30]} d6 {[%emt 0:00:30]} 3. d4 {[%emt 0:13:30]} g6 {[%emt 0:00:30]} 4. h3 {[%emt 0:01:30]} Bg7 {[%emt 0:00:30]} 5. Nc3 {[%emt 0:00:30]} e5 {[%emt 0:07:30]} 6. Bg5 {[%emt 0:04:30]} f6 {[%emt 0:06:30]} 7. Be3 {[%emt 0:01:30]} Nge7 $16 {[%emt 0:10:30]} 8. Qd2 {[%emt 0:15:30]} exd4 {[%emt 0:05:30]} 9. Nxd4 {[%emt 0:00:30]} Nxd4 {[%emt 0:00:30]} 10. Bxd4 {[%emt 0:13:30]} Be6 {[%emt 0:02:30]} 11. h4 {[%emt 0:02:30]} Nc6 {[%emt 0:06:30]} 12. Bb5 {[%emt 0:08:30]} h5 {[%emt 0:12:30]} 13. Be3 {[%emt 0:07:30]} a6 {[%emt 0:03:30]} 14. Ba4 {[%emt 0:05:30]} Qd7 {[%emt 0:02:30]} 15. Nd5 {[%emt 0:01:30]} O-O {[%emt 0:05:30]} 16. Nf4 {[%emt 0:04:21]} Bf7 {[%emt 0:01:30]} 17. Rh3 {[%emt 0:02:07]} Kh7 {[%emt 0:02:30]} 18. Rg3 {[%emt 0:02:07]} b5 {[%emt 0:01:30]} 19. Bb3 {[%emt 0:00:40]} Ne5 {[%emt 0:00:00]} 20. O-O-O {[%emt 0:06:59]} a5 {[%emt 0:03:00]} 21. Bd4 {[%emt 0:02:08]} Bh6 {[%emt 0:02:30]} 22. Kb1 {[%emt 0:00:53]} a4 {[%emt 0:01:30]} 23. Bxf7 {[%emt 0:01:20]} Qxf7 {[%emt 0:00:30]} 24. Be3 {[%emt 0:00:09]} Nc4 {[%emt 0:01:30]} 25. Qd5 {[%emt 0:00:54]} Nxe3 {[%emt 0:06:16]} 26. fxe3 {[%emt 0:00:47]} Bxf4 {[%emt 0:01:05]} 27. exf4 {[%emt 0:00:42]} Qxd5 {[%emt 0:01:10]} 28. Rxd5 {[%emt 0:00:14]} Rfe8 {[%emt 0:00:59]} 29. f5 {[%emt 0:01:14]} Rxe4 {[%emt 0:03:25]} 30. fxg6+ {[%emt 0:00:30]} Kg7 {[%emt 0:00:00]} 31. a3 {[%emt 0:00:08]} Rxh4 {[%emt 0:04:56]} 32. Rxb5 {[%emt 0:00:52]} Rg4 {[%emt 0:00:45]} 33. Rh3 {[%emt 0:01:12]} Kxg6 {[%emt 0:01:42]} 34. Rbxh5 {[%emt 0:00:32]} Rxg2 {[%emt 0:00:17]} 35. Rh6+ {[%emt 0:00:32]} Kf7 {[%emt 0:02:24]} 36. Rf3 {[%emt 0:00:48]} Rg6 {[%emt 0:00:50]} 37. Rh7+ {[%emt 0:00:10]} Rg7 {[%emt 0:00:51]} 38. Rh6 {[%emt 0:00:30]} Rg6 {[%emt 0:00:30]} 39. Rh7+ {[%emt 0:00:00]} 1/2-1/2

[Event "TUR-chT Superleague 2018"]
[Site "Ankara"]
[Date "2018.07.29"]
[Round "5"]
[White "Cansun, Can Alp"]
[Black "Yildirim, Ibrahim Halil"]
[Result "1-0"]
[ECO "C90"]
[WhiteElo "1894"]
[BlackElo "1887"]
[Annotator "NA"]
[PlyCount "77"]
[EventDate "2018.07.25"]
[EventType "team-tourn"]
[EventCountry "TUR"]
[SourceTitle "playchess.com"]
[Source "ChessBase"]
[SourceQuality "1"]
[TimeControl "40/5400+30:1800+30"]

1. e4 {[%emt 0:00:30]} e5 {[%emt 0:01:00]} 2. Nf3 {[%emt 0:00:30]} Nc6 {[%emt 0:00:30]} 3. Bb5 {[%emt 0:00:30]} a6 {[%emt 0:00:30]} 4. Ba4 {[%emt 0:00:30]} Nf6 {[%emt 0:00:30]} 5. O-O {[%emt 0:00:00]} Be7 $11 {[%emt 0:00:00] LiveBook: 35940 Games} 6. Re1 {[%emt 0:00:00]} b5 {[%emt 0:00:00]} 7. Bb3 {[%emt 0:00:00]} O-O {[%emt 0:01:30]} 8. d3 {[%emt 0:00:00]} d6 {[%emt 0:01:30]} 9. c3 {[%emt 0:00:30]} Na5 {[%emt 0:10:30]} 10. Bc2 {[%emt 0:00:30]} c5 {[%emt 0:00:30]} 11. Nbd2 {[%emt 0:00:30]} Re8 {[%emt 0:01:30]} 12. Nf1 {[%emt 0:00:30]} h6 {[%emt 0:05:30]} 13. Ng3 {[%emt 0:02:30]} Bf8 {[%emt 0:01:30]} 14. h3 {[%emt 0:04:30]} g6 {[%emt 0:06:30]} 15. d4 {[%emt 0:06:30]} Qc7 {[%emt 0:01:30]} 16. b3 {[%emt 0:11:30]} Bb7 {[%emt 0:07:30]} 17. d5 {[%emt 0:02:30]} Bc8 {[%emt 0:01:30]} 18. Nh2 {[%emt 0:01:30]} Bg7 {[%emt 0:02:30]} 19. Be3 {[%emt 0:07:30]} Nb7 {[%emt 0:19:30]} 20. Qd2 {[%emt 0:00:30]} Kh7 {[%emt 0:00:30]} 21. f4 {[%emt 0:07:30]} exf4 {[%emt 0:02:30]} 22. Bxf4 {[%emt 0:03:30]} Nd7 {[%emt 0:05:30]} 23. Ng4 {[%emt 0:04:30]} Qa5 {[%emt 0:17:28]} 24. e5 {[%emt 0:25:30]} Nxe5 {[%emt 0:05:31]} 25. Nxh6 {[%emt 0:13:17]} Bxh3 {[%emt 0:05:16]} 26. Ne4 {[%emt 0:01:20]} Bd7 {[%emt 0:01:31]} 27. Ng5+ {[%emt 0:04:26]} Kxh6 {[%emt 0:01:01]} 28. Qf2 {[%emt 0:00:32]} Bg4 {[%emt 0:01:04]} 29. Qh4+ {[%emt 0:00:30]} Bh5 {[%emt 0:00:00]} 30. g4 {[%emt 0:02:01]} Nxg4 {[%emt 0:00:33]} 31. Nxf7+ {[%emt 0:00:30]} Kh7 {[%emt 0:00:30]} 32. Qxh5+ {[%emt 0:00:00]} Kg8 {[%emt 0:00:00]} 33. Qxg6 {[%emt 0:01:03]} Rxe1+ {[%emt 0:01:05]} 34. Rxe1 {[%emt 0:00:02]} Qxc3 {[%emt 0:00:17]} 35. Rf1 {[%emt 0:01:16]} Qf6 {[%emt 0:00:41]} 36. Qh7+ {[%emt 0:00:25]} Kxf7 {[%emt 0:00:27]} 37. Bg5 {[%emt 0:00:22]} Qxf1+ {[%emt 0:00:39]} 38. Kxf1 {[%emt 0:00:01]} Rf8 {[%emt 0:00:24]} 39. Bg6# {[%emt 0:00:28]} 1-0

[Event "TUR-chT Superleague 2018"]
[Site "Ankara"]
[Date "2018.07.29"]
[Round "5"]
[White "Can, Isil"]
[Black "Aydin, Gulenay"]
[Result "0-1"]
[ECO "B75"]
[WhiteElo "1862"]
[BlackElo "1732"]
[Annotator "NA"]
[PlyCount "88"]
[EventDate "2018.07.25"]
[EventType "team-tourn"]
[EventCountry "TUR"]
[SourceTitle "playchess.com"]
[Source "ChessBase"]
[SourceQuality "1"]
[TimeControl "40/5400+30:1800+30"]

1. e4 {[%emt 0:00:30]} c5 {[%emt 0:01:00]} 2. Nf3 {[%emt 0:00:30]} d6 {[%emt 0:00:00]} 3. d4 {[%emt 0:00:30]} cxd4 {[%emt 0:00:00]} 4. Nxd4 {[%emt 0:00:00]} Nf6 {[%emt 0:00:30]} 5. Nc3 {[%emt 0:00:00]} g6 {[%emt 0:00:30]} 6. Be3 {[%emt 0:00:30]} Bg7 {[%emt 0:00:30]} 7. f3 {[%emt 0:00:00]} a6 {[%emt 0:00:30]} 8. Qd2 {[%emt 0:00:00]} h5 {[%emt 0:00:00]} 9. Be2 {[%emt 0:01:30]} Nbd7 {[%emt 0:02:00]} 10. O-O {[%emt 0:00:00]} O-O {[%emt 0:00:30]} 11. Nd5 {[%emt 0:01:00]} e5 {[%emt 0:03:30]} 12. Nb3 {[%emt 0:00:30]} Nxd5 {[%emt 0:00:30]} 13. Qxd5 {[%emt 0:00:00]} Nf6 {[%emt 0:00:30]} 14. Qd2 {[%emt 0:00:00]} d5 {[%emt 0:05:30]} 15. Rfd1 {[%emt 0:19:30]} Be6 {[%emt 0:03:30]} 16. Nc5 {[%emt 0:05:30]} dxe4 {[%emt 0:12:30]} 17. fxe4 {[%emt 0:06:30]} Qe7 {[%emt 0:09:30]} 18. Bf3 {[%emt 0:03:30]} Bg4 {[%emt 0:13:30]} 19. Qf2 {[%emt 0:13:30]} Bxf3 {[%emt 0:02:30]} 20. gxf3 {[%emt 0:00:30]} Rfd8 {[%emt 0:06:30]} 21. Nd3 {[%emt 0:02:30]} Rac8 {[%emt 0:03:30]} 22. Rd2 {[%emt 0:08:30]} Bf8 {[%emt 0:06:30]} 23. Rad1 {[%emt 0:03:30]} Qe6 {[%emt 0:06:30]} 24. b3 {[%emt 0:08:30]} b5 {[%emt 0:02:30]} 25. Qg3 {[%emt 0:04:30]} Re8 {[%emt 0:02:15]} 26. Kh1 {[%emt 0:01:52]} Kh7 {[%emt 0:03:27]} 27. Nf2 {[%emt 0:07:38]} Bb4 {[%emt 0:05:25]} 28. Nh3 {[%emt 0:00:18]} Kg8 {[%emt 0:02:32]} 29. Rg2 {[%emt 0:03:47]} Red8 {[%emt 0:04:15]} 30. Rdg1 {[%emt 0:00:11]} Kf8 {[%emt 0:00:47]} 31. Bh6+ {[%emt 0:01:37]} Ke8 {[%emt 0:00:40]} 32. Ng5 {[%emt 0:05:00]} Qe7 {[%emt 0:00:06]} 33. Bg7 {[%emt 0:01:25]} Bd2 {[%emt 0:02:46]} 34. Nxf7 {[%emt 0:01:20]} Bf4 {[%emt 0:00:32]} 35. Qxg6 {[%emt 0:00:13]} Qxf7 {[%emt 0:00:46]} 36. Bxf6 {[%emt 0:00:28]} Qxg6 {[%emt 0:01:13]} 37. Rxg6 {[%emt 0:00:01]} Rd2 {[%emt 0:00:51]} 38. Rg8+ {[%emt 0:01:21]} Kf7 {[%emt 0:00:21]} 39. R8g7+ {[%emt 0:00:31]} Ke6 {[%emt 0:00:05]} 40. R1g6 {[%emt 0:00:00]} Rd1+ {[%emt 0:00:59]} 41. Rg1 {[%emt 0:02:18]} Rxg1+ {[%emt 0:00:30]} 42. Kxg1 {[%emt 0:00:30]} Kxf6 {[%emt 0:00:00]} 43. Ra7 {[%emt 0:00:00]} Be3+ {[%emt 0:00:00]} 44. Kf1 {[%emt 0:00:00]} Bxa7 {[%emt 0:00:30]} 0-1

[Event "TUR-chT Superleague 2018"]
[Site "Ankara"]
[Date "2018.07.29"]
[Round "5"]
[White "Ozbek, Busra"]
[Black "Ayan, Bengu Sena"]
[Result "0-1"]
[ECO "D94"]
[WhiteElo "1848"]
[BlackElo "1787"]
[Annotator "NA"]
[PlyCount "76"]
[EventDate "2018.07.25"]
[EventType "team-tourn"]
[EventCountry "TUR"]
[SourceTitle "playchess.com"]
[Source "ChessBase"]
[SourceQuality "1"]
[TimeControl "40/5400+30:1800+30"]

1. d4 {[%emt 0:00:30]} d5 {[%emt 0:01:00]} 2. Nf3 {[%emt 0:00:30]} Nf6 {[%emt 0:00:30]} 3. e3 {[%emt 0:00:30]} g6 {[%emt 0:00:00]} 4. c4 {[%emt 0:01:30]} c6 {[%emt 0:00:00]} 5. Nc3 {[%emt 0:01:30]} Bg7 {[%emt 0:00:00]} 6. Bd3 {[%emt 0:05:30]} O-O {[%emt 0:00:00]} 7. O-O {[%emt 0:01:30]} Bg4 {[%emt 0:00:30]} 8. Qb3 {[%emt 0:02:30]} Bxf3 {[%emt 0:06:30]} 9. Qxb7 {[%emt 0:16:30]} Nbd7 {[%emt 0:36:30]} 10. gxf3 {[%emt 0:01:30]} dxc4 {[%emt 0:01:30]} 11. Bxc4 {[%emt 0:01:30]} Nb6 {[%emt 0:03:30]} 12. b3 {[%emt 0:02:30]} Qd6 {[%emt 0:04:30]} 13. a4 {[%emt 0:03:30]} Rfb8 {[%emt 0:07:30]} 14. Qa6 {[%emt 0:00:30]} e5 {[%emt 0:01:30]} 15. Ba3 {[%emt 0:02:30]} Qc7 {[%emt 0:01:30]} 16. dxe5 {[%emt 0:10:30]} Qxe5 {[%emt 0:00:30]} 17. Rac1 {[%emt 0:04:30]} Qg5+ {[%emt 0:15:56]} 18. Kh1 {[%emt 0:00:30]} Nxc4 {[%emt 0:01:33]} 19. Qxc4 {[%emt 0:01:30]} Qh5 {[%emt 0:00:40]} 20. Bd6 {[%emt 0:12:30]} Qxf3+ {[%emt 0:01:31]} 21. Kg1 {[%emt 0:00:30]} Re8 {[%emt 0:02:39]} 22. Ne2 {[%emt 0:04:30]} Ne4 {[%emt 0:04:06]} 23. Rcd1 {[%emt 0:04:49]} Rad8 {[%emt 0:00:36]} 24. Bc7 {[%emt 0:10:25]} Rxd1 {[%emt 0:00:55]} 25. Rxd1 {[%emt 0:01:14]} Nxf2 {[%emt 0:00:10]} 26. Nf4 {[%emt 0:01:48]} Nxd1 {[%emt 0:00:33]} 27. Ng2 {[%emt 0:01:49]} Nxe3 {[%emt 0:01:21]} 28. Nxe3 {[%emt 0:00:32]} Qxe3+ {[%emt 0:00:07]} 29. Kg2 {[%emt 0:00:24]} Qd2+ {[%emt 0:00:30]} 30. Kh3 {[%emt 0:00:00]} Qd7+ {[%emt 0:00:21]} 31. Qg4 {[%emt 0:00:12]} Qxc7 {[%emt 0:00:04]} 32. b4 {[%emt 0:00:27]} h5 {[%emt 0:00:07]} 33. Qf3 {[%emt 0:00:24]} Qd7+ {[%emt 0:00:18]} 34. Kg2 {[%emt 0:00:13]} Qd2+ {[%emt 0:00:30]} 35. Kh3 {[%emt 0:00:00]} Re3 {[%emt 0:00:00]} 36. Qxe3 {[%emt 0:00:14]} Qxe3+ {[%emt 0:00:17]} 37. Kg2 {[%emt 0:00:30]} Bd4 {[%emt 0:00:00]} 38. Kf1 {[%emt 0:00:00]} Qf2# {[%emt 0:00:13]} 0-1